Cogmind - Beta 17.1 @@@ ROGUE MODE // 2026.09.23 @ 20:36:06 Player: Scuttle Result: Destroyed by S-27 Virus with Autogun Performance ------------- Evolutions (6) 3000 Regions Visited (27) 5400 Robots Destroyed (431) 2155 Value Destroyed (16925) 16925 Prototype IDs (55) 1100 Alien Tech Used (2) 400 Bonus (5541) 5541 TOTAL SCORE: 34521 Bonus ------- High Alert Combat Kills 2076 Follower Combat Kills 1835 Entered Garrisons 400 Entered DSFs 500 Aligned with FarCom 300 Acquired ECA 300 Met Zhirov 300 Met R17 at Cetus 500 Friendly Fire -670 Cogmind --------- Core Integrity 0/1150 Matter 128/300 Energy 98/100 System Corruption 12% Temperature Cool (15) Movement Core (50) Location -4/Garrison Parts ------- > --- POWER (3) -------- (None) > --- PROPULSION (8) --- (None) > --- UTILITY (4) ------ Core Analyzer > --- WEAPON (4) ------- (None) > --- INVENTORY (5) ---- Heavy Antimatter Reactor Matter Compressor (0) Neutron Cannon KE Penetrator KE Penetrator Peak State ------------ > --- POWER ------------ Neutrino Core Quantum Reactor Quantum Reactor > --- PROPULSION ------- Improved Heavy Treads Improved Heavy Treads Centrium Heavy Treads > --- UTILITY ---------- Huge Storage Unit Experimental Targeting Computer Core Analyzer Advanced Force Field > --- WEAPON ----------- KE Penetrator KE Penetrator KE Penetrator Advanced KE Penetrator > --- INVENTORY -------- Improved Treads Improved Treads Improved Cooling System Improved Cooling System Matter Compressor Core Analyzer Matter Filter Centrium Medium Armor Plating Centrium Medium Armor Plating High-powered Tractor Beam Wave Gun Heavy Plasma Cannon Coil Gun Coil Gun Coil Gun Heavy Machine Gun Heavy Machine Gun KE Penetrator KE Penetrator KE Penetrator KE Penetrator Precision Grenade Launcher [Rating: 126] Favorites ----------- Power Antimatter Reactor Engine Heavy Ion Engine Power Core Neutrino Core Reactor Antimatter Reactor Propulsion Light Treads Treads Light Treads Leg Enhanced Armored Leg Wheel Compact Wheel Hover Unit Aerolev Unit Utility Core Analyzer Device Improved Cooling System Storage High-capacity Storage Unit Processor Core Analyzer Protection Light Armor Plating Weapon Enhanced Autogun Energy Gun Small Laser Energy Cannon Heavy Plasma Cannon Ballistic Gun Enhanced Autogun Ballistic Cannon Improved Light Cannon Launcher Missile Launcher Special Weapon Field Lobotomy Kit Impact Weapon Great Maul Build | -11 -10 -10 -10 -9 -8 -8 -7 -7 -7 -7 -7 -7 -6 -6 -6 -6 -6 -6 -5 -5 -5 -5 -5 -5 -4 -4 -4 ------- Run | Yrd Mat Min Exi Min Mat Sto Fac Was Fac Gar Fac DSF Fac Was Fac Ext Cet Arc Fac Was Fac Upp Upp Zhi Pro Fac Gar Slots Evolved 12 | . . . . . 4 . 2 . . . . . 2 . . . . . 2 . . . . . . 2 . Power 2 | . . . . . . . . . . . . . 1 . . . . . 1 . . . . . . . . Propulsion 6 | . . . . . 1 . 2 . . . . . 1 . . . . . . . . . . . . 2 . Utility 2 | . . . . . 2 . . . . . . . . . . . . . . . . . . . . . . Weapon 2 | . . . . . 1 . . . . . . . . . . . . . 1 . . . . . . . . Parts Attached 195 | 6 8 . 1 . 27 18 21 6 . 14 . 4 3 5 6 7 4 2 15 2 21 2 4 2 8 9 . Power 28 | 1 1 . 1 . 3 4 . 1 . 1 . 1 2 . 1 1 2 . 3 . 3 . 1 1 . 1 . Engine 6 | 1 1 . 1 . . 1 . . . . . . . . 1 . . . . . 1 . . . . . . Core 14 | . . . . . 3 3 . . . . . 1 1 . . . . . 3 . 2 . 1 . . . . Reactor 8 | . . . . . . . . 1 . 1 . . 1 . . 1 2 . . . . . . 1 . 1 . Propulsion 57 | 2 1 . . . 8 2 9 3 . 4 . 1 . 2 . 3 1 . . . 11 1 2 . 5 2 . Treads 41 | 2 1 . . . 8 1 7 2 . 4 . . . 2 . 3 1 . . . 6 1 2 . . 1 . Leg 7 | . . . . . . . . . . . . . . . . . . . . . 1 . . . 5 1 . Wheel 8 | . . . . . . . 2 1 . . . 1 . . . . . . . . 4 . . . . . . Hover 1 | . . . . . . 1 . . . . . . . . . . . . . . . . . . . . . Flight . | . . . . . . . . . . . . . . . . . . . . . . . . . . . . Utility 51 | . 3 . . . 8 5 7 1 . 4 . 1 . 1 5 . 1 . 6 1 2 . 1 1 . 4 . Device 21 | . . . . . 3 . 2 1 . 4 . . . . 5 . . . 3 1 1 . . . . 1 . Storage 6 | . 1 . . . 1 1 1 . . . . 1 . . . . . . 1 . . . . . . . . Processor 9 | . . . . . 1 2 1 . . . . . . . . . . . 1 . 1 . 1 . . 2 . Hackware . | . . . . . . . . . . . . . . . . . . . . . . . . . . . . Protection 15 | . 2 . . . 3 2 3 . . . . . . 1 . . 1 . 1 . . . . 1 . 1 . Artifact . | . . . . . . . . . . . . . . . . . . . . . . . . . . . . Weapon 59 | 3 3 . . . 8 7 5 1 . 5 . 1 1 2 . 3 . 2 6 1 5 1 . . 3 2 . Energy Gun 4 | 1 1 . . . . . . . . 1 . . . . . 1 . . . . . . . . . . . Energy Cannon 2 | . . . . . . . . . . . . . . 1 . . . . . . 1 . . . . . . Ballistic Gun 38 | 2 . . . . 7 5 . 1 . 4 . . 1 . . 2 . 2 5 1 3 1 . . 2 2 . Ballistic Cannon 4 | . 2 . . . . 1 . . . . . . . 1 . . . . . . . . . . . . . Launcher 5 | . . . . . 1 1 1 . . . . . . . . . . . . . 1 . . . 1 . . Special Weapon 3 | . . . . . . . 1 . . . . 1 . . . . . . 1 . . . . . . . . Impact Weapon 3 | . . . . . . . 3 . . . . . . . . . . . . . . . . . . . . Slashing Weapon . | . . . . . . . . . . . . . . . . . . . . . . . . . . . . Piercing Weapon . | . . . . . . . . . . . . . . . . . . . . . . . . . . . . Special Melee Weapon . | . . . . . . . . . . . . . . . . . . . . . . . . . . . . Unidentified Prototypes 19 | . . . . . . 3 2 . . 1 . . 1 1 . . 2 1 . . 4 . . 3 . 1 . Parts Lost 34 | . . . . . 2 . 1 . . 1 . . . . . . 1 . . 4 7 3 3 . 5 7 . Power 5 | . . . . . . . . . . . . . . . . . . . . 1 1 . 2 . 1 . . Propulsion 16 | . . . . . . . . . . 1 . . . . . . 1 . . 1 4 1 . . 4 4 . Utility 5 | . . . . . 1 . 1 . . . . . . . . . . . . 1 . . 1 . . 1 . Weapon 8 | . . . . . 1 . . . . . . . . . . . . . . 1 2 2 . . . 2 . Highest Loss Streak 4 | . . . . . 1 . 1 . . 1 . . . . . . 1 . . 4 4 3 3 . 4 3 . To Critical Strikes 2 | . . . . . . . . . . . . . . . . . 1 . . 1 . . . . . . . Average Backups 17 | . 8 15 15 15 16 19 18 18 17 16 17 17 17 18 17 17 17 19 21 22 22 23 20 22 17 17 5 Power . | . 1 1 . . . 1 1 1 1 1 1 1 . . . . . . . . . . . . . . 1 Propulsion 2 | . 2 4 4 4 4 5 2 2 3 3 3 3 2 2 2 1 . 1 2 2 3 3 3 3 . . . Utility 6 | . 1 3 3 3 4 6 6 4 4 4 4 4 5 6 6 5 6 7 8 9 8 9 8 8 7 8 1 Weapon 7 | . 3 7 7 7 5 5 8 9 8 7 8 8 9 9 8 8 10 10 10 11 9 10 9 10 7 6 3 Tool/Special . | . . . . . . . . . . . . . . . . . . . . . . . . . . . . Unused Backups 45 | . 1 . . 1 9 7 2 3 . 3 . 1 3 . 1 1 . . 2 . 3 . . 1 . 6 1 Power 4 | . . . . . . 1 . 2 . . . . . . . . . . . . . . . . . 1 . Propulsion 6 | . . . . . . 3 . . . 1 . . . . . . . . 2 . . . . . . . . Utility 13 | . . . . 1 2 1 1 1 . 1 . 1 . . . 1 . . . . 1 . . 1 . 1 1 Weapon 21 | . 1 . . . 7 2 1 . . 1 . . 3 . 1 . . . . . 2 . . . . 3 . Tool/Special 1 | . . . . . . . . . . . . . . . . . . . . . . . . . . 1 . Average Slot Usage (%) 89 | . 97 100 100 100 99 99 99 94 88 73 76 76 79 79 79 83 84 79 81 71 89 100 91 73 97 78 5 Engine 3 | . 14 14 14 14 . 3 7 . . . . . . . 2 6 1 . . . 1 5 . . . . . Core 3 | . . . . . 8 5 . . . . . . 4 6 3 . . . 5 5 9 11 8 11 9 4 . Reactor 3 | . . . . . . . . 6 7 7 7 7 7 6 6 5 11 13 11 8 3 . . 1 5 4 . Treads 21 | . 27 28 28 28 26 27 28 11 7 8 15 15 20 20 20 23 24 20 17 14 21 23 27 35 13 5 . Leg 1 | . . . . . . . . . . . . . . . . . . . . . . . . . 19 25 . Wheel 3 | . . . . . . . 9 21 23 14 . . . . . . . . . . 3 11 7 . . . . Device 5 | . . . . . 8 9 4 7 7 7 7 7 6 6 6 6 6 6 4 5 4 . 4 5 5 3 . Storage 7 | . 12 14 14 14 9 9 7 7 7 7 7 7 6 6 6 6 6 6 5 5 5 5 5 5 5 4 . Processor 10 | . . . . . 9 9 11 15 15 15 15 15 13 13 13 13 13 13 11 8 10 11 10 11 11 9 5 Protection 3 | . 12 14 14 14 9 9 6 . . . . . . . . . . . . . 1 4 . . . 1 . Energy Gun 1 | . 18 . . . . . . . . 4 . . . . . 5 . . . . . . . . . . . Ballistic Gun 18 | . 1 . . . 26 26 21 23 19 6 23 22 20 6 19 13 20 19 22 19 21 22 23 . 22 17 . Ballistic Cannon 1 | . 7 28 28 28 . . . . . . . . . 5 . . . . . . . . . . . . . Peak Build Rating 126 | 5 10 10 11 11 34 39 45 58 58 74 74 79 92 96 94 92 105 107 126 122 108 93 87 80 93 104 7 Average Rating 65 | 4 7 10 10 11 28 36 42 53 56 66 74 74 88 88 87 87 97 106 119 106 99 90 76 63 90 87 7 On Entrance 61 | . 5 10 10 11 11 34 39 44 58 58 74 74 74 89 89 88 92 105 107 121 95 92 87 80 69 91 7 Avg Prop Armor Cover (%) 15 | . . . . . . . 19 14 14 18 . . . . . . . . . . 14 17 21 . 4 8 . Naked Turns . | . . . . . . . . . . . . . . . . . . . . . . . . . . . . Heaviest Build 170 | 5 36 36 36 36 66 69 64 68 68 78 66 71 82 90 91 93 107 107 170 162 162 143 138 121 139 138 . Greatest Support 230 | 40 40 40 40 40 60 60 100 48 48 150 150 150 220 220 215 215 230 230 230 230 201 32 160 160 160 120 3 Greatest Overweight (x) 4 | . . . . . 1 1 1 2 1 2 . . . . . . . . . . 4 4 4 . 3 2 . Average Overweight (x) . | . . . . . . . . 1 1 1 . . . . . . . . . . . 4 2 . . . . Largest Inventory Capacity 25 | 5 15 15 15 15 20 20 20 20 20 20 20 20 20 20 20 20 20 20 25 25 25 25 25 25 25 25 5 Average Capacity 20 | 5 14 15 15 15 18 20 20 20 20 20 20 20 20 20 20 20 20 20 24 25 25 25 25 25 25 23 5 Most Carried 25 | 1 15 15 15 15 20 20 20 20 20 20 20 20 20 20 20 20 19 20 23 22 25 25 22 24 22 21 5 Average Carried 18 | . 8 15 15 15 16 19 18 19 20 19 20 20 19 20 19 19 18 19 21 22 22 23 20 22 17 17 5 Final Capacity 25 | 5 15 15 15 15 20 20 20 20 20 20 20 20 20 20 20 20 20 20 25 25 25 25 25 25 25 25 5 Final Carried 25 | 1 15 15 15 15 16 20 20 20 20 20 20 20 20 20 19 18 18 20 22 22 25 21 20 23 17 20 5 Class Distribution -------------------- 41% | Scavenger-Gunner 18% | Skirmisher 12% | Mutant 11% | Gunner 4% | Scavenger-Tank 4% | Scavenger-Skirmisher 3% | Commander-Gunner Dominant Class ---------------- Mutant | -10/Materials Mutant | -10/Mines Mutant | -10/Exiles Mutant | -9/Mines Skirmisher | -8/Materials Skirmisher | -8/Storage Skirmisher | -7/Factory Gunner | -7/Waste Gunner | -7/Factory Gunner | -7/Garrison Gunner | -7/Factory Gunner | -7/DSF Scavenger-Gunner | -6/Factory Scavenger-Gunner | -6/Waste Scavenger-Gunner | -6/Factory Scavenger-Gunner | -6/Extension Commander-Tank | -6/Cetus Scavenger-Gunner | -6/Archives Scavenger-Gunner | -5/Factory Scavenger-Gunner | -5/Waste Scavenger-Gunner | -5/Factory Scavenger-Gunner | -5/Upper Caves Scavenger-Gunner | -5/Upper Caves Scavenger-Mutant | -5/Zhirov Scavenger-Gunner | -4/Proximity Caves Scavenger-Gunner | -4/Factory Mutant | -4/Garrison Resources | -11 -10 -10 -10 -9 -8 -8 -7 -7 -7 -7 -7 -7 -6 -6 -6 -6 -6 -6 -5 -5 -5 -5 -5 -5 -4 -4 -4 ----------- Run | Yrd Mat Min Exi Min Mat Sto Fac Was Fac Gar Fac DSF Fac Was Fac Ext Cet Arc Fac Was Fac Upp Upp Zhi Pro Fac Gar Matter Collected 15568 | 115 219 . . 98 1661 1297 1663 310 . 605 . 412 315 101 1020 846 342 151 1696 188 2670 180 380 . 959 340 . Remotely 2775 | . . . . . . . . . . . . . . . 252 96 181 . 965 . 907 . . . 374 . . Salvage Created 22959 | 6 431 . . 9 2585 1545 2008 1834 . 1455 . 166 377 586 1141 1451 395 90 2439 847 4240 132 300 . 483 439 . Parts 1052 | . 27 . . 3 131 94 114 29 . 69 . 8 22 8 42 58 16 6 110 19 230 18 13 . 11 24 . Haulers Intercepted 18 | . 1 . . . 5 5 3 . . . . . . . 1 . . . . . 3 . . . . . . Recyclers Shooed 17 | . 2 . . . 3 1 . . . . . . . . 1 1 . . 3 . 5 . . . . 1 . Parts Field Recycled . | . . . . . . . . . . . . . . . . . . . . . . . . . . . . Retrieved Matter . | . . . . . . . . . . . . . . . . . . . . . . . . . . . . Parts Self-Destructed 41 | . . . . . . . . . . . . . . . . . . . . . . 16 14 . 11 . . Prevented . | . . . . . . . . . . . . . . . . . . . . . . . . . . . . Parts Restored . | . . . . . . . . . . . . . . . . . . . . . . . . . . . . Kills | -11 -10 -10 -10 -9 -8 -8 -7 -7 -7 -7 -7 -7 -6 -6 -6 -6 -6 -6 -5 -5 -5 -5 -5 -5 -4 -4 -4 ------- Run | Yrd Mat Min Exi Min Mat Sto Fac Was Fac Gar Fac DSF Fac Was Fac Ext Cet Arc Fac Was Fac Upp Upp Zhi Pro Fac Gar Combat Hostiles Destroyed 321 | . 13 . . 3 47 26 34 6 . 23 . 3 9 2 12 18 5 1 29 3 48 6 6 . 16 11 . Melee 1 | . . . . . . . . . . . . . . . . . . . . . 1 . . . . . . Guns 268 | . 10 . . . 45 20 32 6 . 16 . 3 9 . 12 16 5 1 29 3 38 1 6 . 11 5 . Cannons 9 | . 3 . . 3 . . . . . . . . . 2 . . . . . . . . . . . 1 . AOE 41 | . . . . . 2 6 2 . . 7 . . . . . . . . . . 9 5 . . 5 5 . Classes Destroyed 22 | 1 4 . . . 5 5 2 2 . . . . . . 1 1 . . . . . . . . 1 . . Worker 23 | . . . . . 1 2 4 . . . . . . . 1 2 . . 1 . 11 . . . . 1 . Builder 17 | . . . . . . 1 2 . . . . . . . . . . . 1 . 12 . . . . 1 . Tunneler 4 | 1 . . . 1 1 . . . . . . . . . . . . . 1 . . . . . . . . Hauler 18 | . 1 . . . 5 5 3 . . . . . . . 1 . . . . . 3 . . . . . . Recycler 24 | . 1 . . . 3 2 3 . . . . . . . 1 3 . . 4 . 7 . . . . . . Mechanic 2 | . . . . . . . 1 . . . . . . . . . . . . . 1 . . . . . . Operator 5 | . . . . . . 2 . . . . . . . . 1 . . . . . 1 . . . . 1 . Drone 2 | . . . . . . . . . . . . . . . . . . . . . . . . . 2 . . Watcher 13 | . . . . . 4 2 1 . . . . . 1 . . 1 . . . . 4 . . . . . . Swarmer 84 | . 9 . . 3 11 4 9 . . 11 . 1 6 . . . . . 5 . 10 5 2 . 1 7 . Saboteur 1 | . . . . . . . . . . . . . . . 1 . . . . . . . . . . . . Grunt 101 | . 4 . . . 25 7 12 . . 7 . . 1 . 5 8 . . 3 . 20 . 2 . 5 2 . Brawler 8 | . . . . . . 1 2 . . . . . . . 1 . . . 1 . . . 1 . 2 . . Duelist 8 | . . . . . 1 2 . . . . . . . . . . . . 1 . 2 . . . 2 . . Protector 1 | . . . . . . 1 . . . . . . . . . . . . . . . . . . . . . Sentry 48 | . . . . . 6 10 4 . . 2 . . 2 . 2 4 . 1 12 . 2 . 1 . 1 1 . Specialist 6 | . . . . . 4 . . . . . . 1 . . 1 . . . . . . . . . . . . Hunter 19 | . . . . . . 1 1 . . . . 1 . . 2 5 . . 1 . 6 . . . 2 . . Programmer 25 | . . . . . . . 6 . . 3 . . . . 1 . . . 6 . 7 . . . 1 1 . Behemoth 3 | . . . . . . . . . . . . . . . . 1 . . . . 1 1 . . . . . Compactor 11 | . . . . . . . . 6 . . . . . 2 . . . . . 3 . . . . . . . Cetus Guard 5 | . . . . . . . . . . . . . . . . . 5 . . . . . . . . . . Thug 1 | . . . . . . . . . . . . . . . . 1 . . . . . . . . . . . Martyr 2 | . . . . . . . . 2 . . . . . . . . . . . . . . . . . . . Best Kill Streak 18 | 1 3 . . 3 6 6 6 3 . 5 . 1 3 1 4 4 3 1 6 2 18 5 3 . 7 5 . Combat Bots Only 7 | . 3 . . 3 5 5 5 3 . 5 . 1 3 1 4 3 3 1 5 2 6 5 3 . 7 4 . Max Kills in Single Turn 6 | 1 2 . . 1 2 3 2 1 . 3 . 1 2 1 2 1 1 1 2 1 6 3 2 . 2 3 . Gunslinging 1 | . 1 . . . 1 . . . . . . . 1 . 1 . . . 1 . 1 . . . 1 . . Exploded 4 | . . . . . 2 3 1 . . 3 . . . . . . . . . . 4 3 . . 2 3 . Melee 1 | . . . . . . . . . . . . . . . . . . . . . 1 . . . . . . Uniques/NPCs Destroyed . | . . . . . . . . . . . . . . . . . . . . . . . . . . . . Combat | -11 -10 -10 -10 -9 -8 -8 -7 -7 -7 -7 -7 -7 -6 -6 -6 -6 -6 -6 -5 -5 -5 -5 -5 -5 -4 -4 -4 -------- Run | Yrd Mat Min Exi Min Mat Sto Fac Was Fac Gar Fac DSF Fac Was Fac Ext Cet Arc Fac Was Fac Upp Upp Zhi Pro Fac Gar Hostile Shots Fired 1644 | . 38 . . 16 200 60 169 . . 110 . 4 44 . 94 116 20 11 120 1 204 56 21 . 104 200 56 Missed 496 | . 12 . . 3 59 18 52 . . 29 . . 21 . 36 39 9 2 27 . 47 14 5 . 25 71 27 Hits 1148 | . 26 . . 13 141 42 117 . . 81 . 4 23 . 58 77 11 9 93 1 157 42 16 . 79 129 29 Melee 16 | . . . . . . 1 1 . . . . . . . . 1 . . . 1 3 . 3 . 6 . . Projectile 1132 | . 26 . . 13 141 41 116 . . 81 . 4 23 . 58 76 11 9 93 . 154 42 13 . 73 129 29 AOE 3 | . . . . . . . . . . 1 . . . . . 2 . . . . . . . . . . . Critical Strikes 43 | . . . . . 3 1 3 . . 1 . . . . 1 2 1 . 5 1 12 . 1 . 2 8 2 Actively Blocked 1 | . . . . . . . 1 . . . . . . . . . . . . . . . . . . . . Part Disruptions 2 | . . . . . . . 1 . . . . . . . . . . . . . 1 . . . . . . Damage Taken 17028 | . 221 . . 97 1971 615 1328 . . 830 . 62 233 . 689 1236 167 107 1428 229 2393 779 338 . 1332 2506 467 Core 2568 | . 49 . . 13 166 93 164 . . 155 . 13 6 . 32 111 27 11 60 . 254 149 18 . 194 586 467 Absorbed by Shields 2338 | . . . . . . . 148 . . 155 . . 21 . 178 63 175 111 564 . 629 . . . 259 35 . Reduced by Siege Mode 110 | . . . . . . . . . . . . . . . . 8 . . 80 . 22 . . . . . . Redirected to Shielding 186 | . 4 . . . . 78 104 . . . . . . . . . . . . . . . . . . . . Regen/Repaired (Parts) 614 | . 113 . . . . 115 82 . 58 87 . . . . . . . . . . 159 . . . . . . Core Remaining (%) 64 | 100 . . . 75 . 52 . . . . . 52 . . . . . 78 . . . . . . 32 . . Volleys Fired 979 | . 44 . . 10 134 83 100 41 . 42 . 7 24 5 58 59 14 9 82 17 122 26 10 . 39 53 . Largest 4 | . 2 . . 2 3 3 3 3 . 3 . 3 3 1 3 3 3 3 4 4 4 4 4 . 4 4 . Hottest 134 | . 80 . . 66 69 75 75 75 . 75 . 75 75 90 90 120 91 91 134 134 131 126 126 . 123 123 . Shots Fired 2787 | . 88 . . 20 394 223 289 122 . 133 . 19 72 5 143 172 41 26 287 50 415 53 41 . 114 80 . Gun 2605 | . 78 . . . 390 210 284 122 . 129 . 18 72 . 128 171 41 26 275 45 394 37 41 . 102 42 . Cannon 133 | . 10 . . 20 . 3 . . . . . . . 5 11 1 . . 11 5 18 14 . . 1 34 . Launcher 42 | . . . . . 4 10 4 . . 4 . . . . . . . . . . 3 2 . . 11 4 . Special 7 | . . . . . . . 1 . . . . 1 . . 4 . . . 1 . . . . . . . . Kinetic 2488 | . 16 . . 20 390 213 284 122 . 97 . 18 72 4 128 121 41 26 275 45 394 37 41 . 102 42 . Thermal 250 | . 72 . . . . . . . . 32 . . . 1 11 51 . . 11 5 18 14 . . 1 34 . Explosive 42 | . . . . . 4 10 4 . . 4 . . . . . . . . . . 3 2 . . 11 4 . Electromagnetic . | . . . . . . . . . . . . . . . . . . . . . . . . . . . . Robot Hit Streak 60 | . 7 . . 6 43 18 41 16 . 60 . 6 8 5 22 22 14 10 22 18 19 14 10 . 9 9 . Robot Miss Streak 5 | . 4 . . 3 3 3 3 2 . 4 . 1 3 1 2 5 2 3 4 1 4 3 3 . 5 3 . Penetration Max 2 | . . . . . . . . . . . . . . . . . 1 . 1 . 2 . 1 . . 1 . Secondary Targets 38 | . 1 . . . 6 . 2 . . . . . 2 . 3 1 4 . 5 . 8 . 1 . 4 1 . Max Gunslinging Chain 2 | . 1 . . . 1 . 1 . . . . . 1 . 2 1 1 . 1 . 1 . 1 . 1 1 . Autonomous 41 | . . . . . . . . . . 41 . . . . . . . . . . . . . . . . . Shots Hit Robots 1910 | . 54 . . 12 276 147 215 98 . 105 . 12 47 3 100 139 33 21 177 40 275 28 28 . 61 39 . Core Hits 942 | . 20 . . 2 118 73 87 30 . 70 . 6 22 2 44 86 16 11 83 8 157 12 13 . 59 23 . Critical Kills 25 | . . . . . . 1 . 1 . 1 . . . 2 1 . 5 . 2 2 10 . . . . . . Critical Parts Destroyed 36 | . . . . . . 1 . 1 . . . . . . 2 . 5 . 13 . 11 . 1 . 1 1 . Critical Strikes 71 | . 1 . . . . 2 . 3 . 1 . . . 3 3 . 10 1 19 2 22 1 1 . 1 1 . Destroy 70 | . . . . . . 2 . 3 . 1 . . . 3 3 . 10 1 19 2 22 1 1 . 1 1 . Blast 1 | . 1 . . . . . . . . . . . . . . . . . . . . . . . . . . Melee Attacks 15 | . . . . . . . 15 . . . . . . . . . . . . . . . . . . . . Impact 15 | . . . . . . . 15 . . . . . . . . . . . . . . . . . . . . Slashing . | . . . . . . . . . . . . . . . . . . . . . . . . . . . . Piercing . | . . . . . . . . . . . . . . . . . . . . . . . . . . . . Sneak Attacks . | . . . . . . . . . . . . . . . . . . . . . . . . . . . . Combat Hostiles . | . . . . . . . . . . . . . . . . . . . . . . . . . . . . Follow-up Attacks . | . . . . . . . . . . . . . . . . . . . . . . . . . . . . Damage Inflicted 47367 | 6 694 . . 287 4624 3388 4171 1791 . 3340 . 148 930 49 1968 3032 415 204 4917 965 9075 966 733 . 3585 2079 . Guns 38813 | . 516 . . . 4213 2298 3770 1791 . 2763 . 148 930 . 1964 3001 415 204 4845 965 7733 661 733 . 1193 670 . Cannons 1071 | . 164 . . 275 . . . . . . . . . 49 . . . . 32 . . . . . . 551 . Explosions 6962 | . . . . . 360 1032 399 . . 577 . . . . . . . . . . 1084 305 . . 2392 813 . Melee . | . . . . . . . . . . . . . . . . . . . . . . . . . . . . Ramming 521 | 6 14 . . 12 51 58 2 . . . . . . . 4 31 . . 40 . 258 . . . . 45 . Kinetic 36043 | . 180 . . 275 4213 2298 3770 1791 . 1281 . 148 930 49 1964 1725 415 204 4845 965 7733 661 733 . 1193 670 . Thermal 3841 | . 500 . . . . . . . . 1482 . . . . . 1276 . . 32 . . . . . . 551 . Explosive 6718 | . . . . . 360 1032 399 . . 577 . . . . . . . . . . 840 305 . . 2392 813 . Electromagnetic 244 | . . . . . . . . . . . . . . . . . . . . . 244 . . . . . . Impact . | . . . . . . . . . . . . . . . . . . . . . . . . . . . . Slashing . | . . . . . . . . . . . . . . . . . . . . . . . . . . . . Piercing . | . . . . . . . . . . . . . . . . . . . . . . . . . . . . Highest Corruption 19 | . . . . . . . 1 1 1 1 1 1 . 13 14 10 10 10 5 11 14 14 19 19 19 12 12 Average Corruption 8 | . . . . . . . 1 1 1 1 1 1 . 8 10 8 10 10 3 7 11 14 18 19 19 7 12 Corruption Purged 7 | . . . . . . . . . . . . . . . 7 . . . . . . . . . . . . Corruption Blocked . | . . . . . . . . . . . . . . . . . . . . . . . . . . . . Effects 371 | . . . . . . . 9 9 . 14 . 3 . 3 45 63 10 14 9 6 71 22 23 10 47 7 6 Message Errors 88 | . . . . . . . 2 4 . 4 . . . 2 8 16 1 5 3 . 22 5 5 1 8 1 1 Matter Fused 74 | . . . . . . . . 1 . 2 . . . . 10 16 2 3 3 1 10 7 5 4 9 . 1 Heat Flow Errors 30 | . . . . . . . . . . 2 . 1 . . 4 5 . 1 . . 8 1 3 1 3 1 . Energy Discharges 42 | . . . . . . . 1 1 . 2 . 1 . . 7 8 3 3 1 3 1 . 3 . 6 2 . Parts Rejected 4 | . . . . . . . . . . . . . . . . . . . . 1 2 . . . 1 . . Parts Fused 4 | . . . . . . . . . . . . . . . . 1 . . . . 2 . 1 . . . . Data Loss (minor) 55 | . . . . . . . 2 2 . 2 . . . . 6 7 2 2 1 1 9 3 2 3 10 1 2 Data Loss (major) 19 | . . . . . . . 1 . . 2 . 1 . 1 3 6 . . . . 1 2 1 . 1 . . Misfires 14 | . . . . . . . 1 . . . . . . . 1 2 . . 1 . 5 2 1 . 1 . . Alerts 11 | . . . . . . . . . . . . . . . 2 1 1 . . . 1 . 1 1 4 . . Misdirections 3 | . . . . . . . . . . . . . . . . . . . . . . . 1 . . . 2 Weapon Failures 27 | . . . . . . . 2 1 . . . . . . 4 1 1 . . . 10 2 . . 4 2 . Overload Shots . | . . . . . . . . . . . . . . . . . . . . . . . . . . . . Overflow Damage 321 | . . . . 31 68 8 6 . . 33 . . . . . . . . . . 76 . . . 36 63 . Projectiles 82 | . . . . 31 . . . . . . . . . . . . . . . . . . . . . 51 . Explosions 184 | . . . . . 68 8 6 . . 33 . . . . . . . . . . 21 . . . 36 12 . Melee 55 | . . . . . . . . . . . . . . . . . . . . . 55 . . . . . . Knockbacks 8 | . 4 . . . . . . . . . . . . . . 1 . . . . 3 . . . . . . Impact 4 | . . . . . . . . . . . . . . . . 1 . . . . 3 . . . . . . Kinetic 3 | . 3 . . . . . . . . . . . . . . . . . . . . . . . . . . Secondary 1 | . 1 . . . . . . . . . . . . . . . . . . . . . . . . . . Self-Inflicted Damage 108 | . . . . . . 1 . . . 71 . . . . . . . . . . 36 . . . . . . Shots 3 | . . . . . . 1 . . . 1 . . . . . . . . . . 1 . . . . . . Rammed 46 | 1 2 . . 2 12 10 1 . . . . . . . 1 3 . . 3 . 11 . . . . . . Targets Rammed 58 | 2 2 . . 3 13 13 1 . . . . . . . 1 3 . . 3 . 13 . . . . 4 . Kicked 4 | . . . . . . . . . . . . . . . . . . . . . . . . . . 4 . Crushed 8 | 1 . . . 1 1 3 . . . . . . . . . . . . . . 2 . . . . . . Highest Temperature 390 | . 114 . . 150 15 17 385 234 . 326 . 199 75 . 288 315 191 307 384 30 299 390 390 82 364 196 338 Average Temperature 81 | . 43 . . 76 6 12 69 91 . 101 . 133 41 . 85 54 73 133 107 14 57 112 161 54 113 73 184 Received Heat Transfer 3856 | . 42 . . . 792 207 328 . . 92 . . 36 . 77 287 . . 229 . 672 60 90 . 108 401 435 Effects 16 | . . . . . . . . . . 3 . . . . . . . 1 9 . . . 1 . 2 . . Shutdowns 2 | . . . . . . . . . . 1 . . . . . . . . . . . . . . 1 . . Energy Bleed 3 | . . . . . . . . . . . . . . . . . . . 2 . . . . . 1 . . Interference 8 | . . . . . . . . . . 2 . . . . . . . 1 5 . . . . . . . . Matter Decay 1 | . . . . . . . . . . . . . . . . . . . 1 . . . . . . . . Short Circuit 1 | . . . . . . . . . . . . . . . . . . . 1 . . . . . . . . Damage (minor) 1 | . . . . . . . . . . . . . . . . . . . . . . . 1 . . . . Siege Activations 4 | . . . . . . . . . . . . . . . . 1 . . 1 . 2 . . . . . . Total Turns 58 | . . . . . . . . . . . . . . . . 5 . . 29 . 24 . . . . . . Longest Duration 29 | . . . . . . . . . . . . . . . . 5 . . 29 . 15 . . . . . . Martial Activations . | . . . . . . . . . . . . . . . . . . . . . . . . . . . . Shielding Activations . | . . . . . . . . . . . . . . . . . . . . . . . . . . . . Robots Disrupted . | . . . . . . . . . . . . . . . . . . . . . . . . . . . . Combat Hostiles . | . . . . . . . . . . . . . . . . . . . . . . . . . . . . Robots Corrupted 1 | . . . . . . . . . . . . . . . . . . . . . 1 . . . . . . Combat Hostiles . | . . . . . . . . . . . . . . . . . . . . . . . . . . . . Parts Fried 4 | . . . . . . . . . . . . 1 . . . . . . . . 3 . . . . . . Impact Corruptions 3 | . . . . . . . . . . . . . . . . . . . . . 3 . . . . . . Robots Melted 2 | . . . . . . . . . . . . . . . . 2 . . . . . . . . . . . Combat Hostiles 2 | . . . . . . . . . . . . . . . . 2 . . . . . . . . . . . Parts Melted 8 | . 1 . . . . . . . . 3 . . . . . 4 . . . . . . . . . . . Heat Transferred 5350 | . 1125 . . . . . . . . 1275 . . . . . 2900 . . 50 . . . . . . . . Parts Sabotaged 5 | . . . . . . . . . . . . . . . . 3 . . . . 2 . . . . . . Parts Stolen . | . . . . . . . . . . . . . . . . . . . . . . . . . . . . Parts Stripped . | . . . . . . . . . . . . . . . . . . . . . . . . . . . . Power Chain Reactions . | . . . . . . . . . . . . . . . . . . . . . . . . . . . . Alert | -11 -10 -10 -10 -9 -8 -8 -7 -7 -7 -7 -7 -7 -6 -6 -6 -6 -6 -6 -5 -5 -5 -5 -5 -5 -4 -4 -4 ------- Run | Yrd Mat Min Exi Min Mat Sto Fac Was Fac Gar Fac DSF Fac Was Fac Ext Cet Arc Fac Was Fac Upp Upp Zhi Pro Fac Gar Maximum Alert Level 4 | . . . . . 3 2 3 1 . 4 3 3 2 . . 2 1 . 3 1 4 . . . . 2 1 Low Security (%) 34 | 100 100 100 . 100 16 . 8 82 100 18 . . . 100 100 45 . 100 45 45 1 . . . . 33 . Level 1 29 | . . . . . 25 23 42 17 . 7 . . 86 . . 35 100 . 26 54 49 . . . . 51 100 Level 2 24 | . . . . . 38 76 47 . . 4 . 35 13 . . 18 . . 27 . 12 . . . . 14 . Level 3 8 | . . . . . 19 . 1 . . 33 100 64 . . . . . . . . 24 . . . . . . Level 4 3 | . . . . . . . . . . 35 . . . . . . . . . . 11 . . . . . . Level 5 . | . . . . . . . . . . . . . . . . . . . . . . . . . . . . High Security . | . . . . . . . . . . . . . . . . . . . . . . . . . . . . Max Security . | . . . . . . . . . . . . . . . . . . . . . . . . . . . . Sterilizations 1 | . . . . . . . . . . . . 1 . . . . . . . . . . . . . . . Peak Influence 1451 | 5 105 3 . 63 881 678 700 241 . 1451 761 781 437 129 170 652 386 184 700 250 1212 . . . . 450 300 Initial 761 | . 3 3 . . 21 363 287 241 . . 761 532 409 128 13 58 354 110 2 242 81 . . . . 450 240 Average 362 | . 39 . . 3 456 513 409 106 . 878 761 681 353 83 48 234 331 99 247 186 605 . . . . 264 261 Influence Increases 12703 | 5 387 . . 76 1470 891 1031 . . 1661 . 309 382 1 455 1240 271 114 1122 14 1754 140 130 . 320 870 60 Destroy 0b10 Robot/C 7040 | . 260 . . 60 940 500 680 . . 700 . 180 240 . 300 600 160 80 640 . 960 120 120 . 280 220 . Destroy 0b10 Robot/NC 605 | 5 10 . . 5 70 75 70 . . 30 . . 5 . 30 40 10 . 35 . 195 . . . 10 15 . Destroy Leader 1382 | . 52 . . 10 208 154 178 . . 40 . 30 62 . 62 84 . . 210 . 192 20 10 . 30 40 . Allied During Kill 1221 | . . . . . . . . . . 470 . 66 66 . 25 455 95 16 28 . . . . . . . . Successful Hack 205 | . 20 . . . 7 35 28 . . . . . . . 28 18 . . 54 . 13 . . . . 2 . Select Force Hacks 30 | . 30 . . . . . . . . . . . . . . . . . . . . . . . . . . Disable Machine 345 | . . . . . 30 30 . . . . . 15 . . . 15 . 15 45 . 150 . . . . 45 . Anti-Garrison Action 350 | . . . . . . . . . . 350 . . . . . . . . . . . . . . . . . Destroy Structure 640 | . . . . 1 35 82 30 . . 71 . 3 9 1 10 13 6 3 110 14 184 . . . . 68 . Advance Influence 450 | . . . . . . . . . . . . . . . . . . . . . . . . . . 450 . Partial Spotted 15 | . . . . . . 15 . . . . . . . . . . . . . . . . . . . . . Lose Combat Pursuer 420 | . 15 . . . 180 . 45 . . . . 15 . . . 15 . . . . 60 . . . . 30 60 Influence Decreases 12403 | . 382 10 . 21 665 1119 973 690 . 210 690 289 796 349 354 726 630 383 434 592 670 744 382 344 320 526 104 Entered New Map 4874 | . 2 7 . . 34 497 345 449 . . 690 229 372 239 6 62 280 165 4 452 35 444 114 344 . . 104 Time Decay 6316 | . 380 3 . 21 601 622 618 221 . . . . 404 70 295 584 140 198 390 100 565 270 238 . 240 356 . Search Patrol Dispatched 100 | . . . . . . . . . . . . . . . . . . . . . . . . . . 100 . Lost Part 330 | . . . . . 20 . 10 . . 10 . . . . . . 10 . . 40 70 30 30 . 40 70 . Lost Ally 783 | . . . . . 10 . . 20 . 200 . 60 20 40 53 80 200 20 40 . . . . . 40 . . Squads Dispatched 76 | . 2 . . . 10 2 10 . . . . 1 3 . 9 5 . . 15 . 16 . . . 1 2 . Investigation 7 | . 2 . . . . . . . . . . . 1 . . 2 . . . . 2 . . . . . . Extermination 14 | . . . . . . . 4 . . . . . 2 . 2 . . . 2 . 3 . . . . 1 . Reinforcement 26 | . . . . . 9 1 2 . . . . 1 . . 4 2 . . 1 . 5 . . . . 1 . Assault 8 | . . . . . 1 1 1 . . . . . . . . 1 . . . . 3 . . . 1 . . Garrison 21 | . . . . . . . 3 . . . . . . . 3 . . . 12 . 3 . . . . . . Intercept . | . . . . . . . . . . . . . . . . . . . . . . . . . . . . Searches Triggered 1 | . . . . . . . . . . . . . . . . . . . . . . . . . . 1 . Construction Impeded 9 | . . . . . 1 . . . . . . . . . 1 1 . . 1 . 4 . . . . 1 . Haulers Reinforced 4 | . . . . . . . 1 . . . . . . . 2 . . . . . 1 . . . . . . Active Scanning Responses . | . . . . . . . . . . . . . . . . . . . . . . . . . . . . Cargo Convoy Interrupts 1 | . . . . . . . . . . . . . . . 1 . . . . . . . . . . . . Stealth | -11 -10 -10 -10 -9 -8 -8 -7 -7 -7 -7 -7 -7 -6 -6 -6 -6 -6 -6 -5 -5 -5 -5 -5 -5 -4 -4 -4 --------- Run | Yrd Mat Min Exi Min Mat Sto Fac Was Fac Gar Fac DSF Fac Was Fac Ext Cet Arc Fac Was Fac Upp Upp Zhi Pro Fac Gar Distress Signals 27 | . 2 . . . 4 3 4 . . . . . . . 1 2 2 . 1 . 5 . . . . 3 . Communications Jammed . | . . . . . . . . . . . . . . . . . . . . . . . . . . . . Distress Signals . | . . . . . . . . . . . . . . . . . . . . . . . . . . . . Times Spotted 473 | . 20 . . 3 65 31 45 7 . 36 . 9 13 2 23 34 10 3 33 6 63 6 6 . 18 28 12 Peak Tracking Total 13 | . 5 . . 3 5 5 4 2 . 7 . 5 3 1 13 7 5 1 6 5 8 5 3 . 7 10 9 Tactical Retreats 19 | . 1 . . . 7 . 2 1 . . . 1 . . . 1 . . . . 3 . . . . 2 1 Traps | -11 -10 -10 -10 -9 -8 -8 -7 -7 -7 -7 -7 -7 -6 -6 -6 -6 -6 -6 -5 -5 -5 -5 -5 -5 -4 -4 -4 ------- Run | Yrd Mat Min Exi Min Mat Sto Fac Was Fac Gar Fac DSF Fac Was Fac Ext Cet Arc Fac Was Fac Upp Upp Zhi Pro Fac Gar Traps Triggered 28 | . . . . . . 3 7 . . 5 . 1 2 . 2 2 . . 1 . 2 . . . . 3 . Indirectly . | . . . . . . . . . . . . . . . . . . . . . . . . . . . . Trap Hack Attempts . | . . . . . . . . . . . . . . . . . . . . . . . . . . . . Triggered . | . . . . . . . . . . . . . . . . . . . . . . . . . . . . Disarmed . | . . . . . . . . . . . . . . . . . . . . . . . . . . . . Reprogrammed . | . . . . . . . . . . . . . . . . . . . . . . . . . . . . Reused . | . . . . . . . . . . . . . . . . . . . . . . . . . . . . Traps Extracted . | . . . . . . . . . . . . . . . . . . . . . . . . . . . . Installed . | . . . . . . . . . . . . . . . . . . . . . . . . . . . . Triggered . | . . . . . . . . . . . . . . . . . . . . . . . . . . . . Machines | -11 -10 -10 -10 -9 -8 -8 -7 -7 -7 -7 -7 -7 -6 -6 -6 -6 -6 -6 -5 -5 -5 -5 -5 -5 -4 -4 -4 ---------- Run | Yrd Mat Min Exi Min Mat Sto Fac Was Fac Gar Fac DSF Fac Was Fac Ext Cet Arc Fac Was Fac Upp Upp Zhi Pro Fac Gar Machines Disabled 30 | . . . . . 2 2 . . . 6 . 1 . . . 1 . 1 3 . 10 . . . 1 3 . Max in Single Turn 2 | . . . . . 1 1 . . . 2 . . . . . 1 . 1 1 . 2 . . . 1 1 . Garrison Relay 4 | . . . . . . . . . . 4 . . . . . . . . . . . . . . . . . Phase Generator 1 | . . . . . . . . . . 1 . . . . . . . . . . . . . . . . . Energy Cycler 4 | . . . . . . . . . . . . . . . . 4 . . . . . . . . . . . Machines Repaired . | . . . . . . . . . . . . . . . . . . . . . . . . . . . . Machines Dismantled . | . . . . . . . . . . . . . . . . . . . . . . . . . . . . Machines Sabotaged . | . . . . . . . . . . . . . . . . . . . . . . . . . . . . Overloaded Fab Kills . | . . . . . . . . . . . . . . . . . . . . . . . . . . . . Hacking | -11 -10 -10 -10 -9 -8 -8 -7 -7 -7 -7 -7 -7 -6 -6 -6 -6 -6 -6 -5 -5 -5 -5 -5 -5 -4 -4 -4 --------- Run | Yrd Mat Min Exi Min Mat Sto Fac Was Fac Gar Fac DSF Fac Was Fac Ext Cet Arc Fac Was Fac Upp Upp Zhi Pro Fac Gar Machines Accessed 61 | . 9 . 2 . 4 11 8 . 2 1 1 . 1 . 3 3 . . 4 . 5 . . 3 . 3 1 Terminals 37 | . 7 . . . 3 9 4 . . 1 1 . 1 . 3 2 . . 1 . 3 . . . . 1 1 Fabricators 4 | . . . . . . . 2 . . . . . . . . . . . 1 . 1 . . . . . . Repair Stations 8 | . 1 . . . . 2 1 . 1 . . . . . . 1 . . 1 . 1 . . . . . . Recycling Units 2 | . 1 . . . . . . . . . . . . . . . . . 1 . . . . . . . . Scanalyzers 3 | . . . . . 1 . 1 . . . . . . . . . . . . . . . . . . 1 . Garrison Access 2 | . . . . . . . . . 1 . . . . . . . . . . . . . . . . 1 . Total Hacks 135 | . 32 . 2 . 10 20 17 . 3 1 1 . 1 . 8 7 . . 7 . 7 . . 13 . 5 1 Successful 78 | . 18 . 2 . 4 12 7 . 3 . 1 . . . 2 4 . . 5 . 4 . . 13 . 3 . Failed 56 | . 13 . . . 6 8 10 . . 1 . . 1 . 6 3 . . 2 . 3 . . . . 2 1 Catastrophic 17 | . 4 . . . . 4 2 . . 1 . . 1 . 3 1 . . . . . . . . . 1 . Database Lockouts 1 | . 1 . . . . . . . . . . . . . . . . . . . . . . . . . . Manual 51 | . 22 . 1 . 3 7 6 . . . . . . . 3 2 . . 2 . 4 . . . . . 1 Terminals 85 | . 27 . . . 8 16 9 . . 1 1 . 1 . 8 5 . . 2 . 5 . . . . 1 1 Fabricators 5 | . . . . . . . 3 . . . . . . . . . . . 1 . 1 . . . . . . Repair Stations 17 | . 4 . . . . 4 2 . 2 . . . . . . 2 . . 2 . 1 . . . . . . Recycling Units 3 | . 1 . . . . . . . . . . . . . . . . . 2 . . . . . . . . Scanalyzers 7 | . . . . . 2 . 3 . . . . . . . . . . . . . . . . . . 2 . Garrison Access 3 | . . . . . . . . . 1 . . . . . . . . . . . . . . . . 2 . Terminal Hacks 42 | . 10 . 2 . 2 7 3 . . . 1 . . . . 2 . . . . 2 . . 13 . . . Record 2 | . . . 1 . . . . . . . . . . . . . . . . . . . . 1 . . . Part Schematic 4 | . . . . . . . . . . . . . . . . . . . . . . . . 4 . . . Robot Analysis 6 | . 2 . . . . . . . . . . . . . . . . . . . . . . 4 . . . Prototype ID Bank 9 | . 4 . . . . . 1 . . . . . . . . . . . . . . . . 4 . . . Open Door 3 | . . . . . . 3 . . . . . . . . . . . . . . . . . . . . . Open DSF 1 | . . . . . . . . . . . 1 . . . . . . . . . . . . . . . . Branch Access Points 2 | . 1 . . . . . . . . . . . . . . . . . . . 1 . . . . . . Alert Level 1 | . . . . . . . . . . . . . . . . 1 . . . . . . . . . . . Locate Traps 5 | . 2 . . . . 2 1 . . . . . . . . . . . . . . . . . . . . Recall Reinforcements 1 | . . . . . 1 . . . . . . . . . . . . . . . . . . . . . . Hauler Manifests 2 | . . . . . 1 1 . . . . . . . . . . . . . . . . . . . . . Zone Layout 5 | . 1 . . . . 1 1 . . . . . . . . 1 . . . . 1 . . . . . . Proto ID Catalog 1 | . . . 1 . . . . . . . . . . . . . . . . . . . . . . . . Fabricator Hacks 1 | . . . . . . . . . . . . . . . . . . . 1 . . . . . . . . Build 1 | . . . . . . . . . . . . . . . . . . . 1 . . . . . . . . Repair Station Hacks 13 | . 4 . . . . 3 2 . 2 . . . . . . 1 . . 1 . . . . . . . . Scan Component 8 | . 2 . . . . 2 1 . 1 . . . . . . 1 . . 1 . . . . . . . . Repair 5 | . 2 . . . . 1 1 . 1 . . . . . . . . . . . . . . . . . . Recycling Unit Hacks 1 | . . . . . . . . . . . . . . . . . . . 1 . . . . . . . . Retrieve Components 1 | . . . . . . . . . . . . . . . . . . . 1 . . . . . . . . Scanalyzer 4 | . . . . . 2 . . . . . . . . . . . . . . . . . . . . 2 . Retrieve Study 4 | . . . . . 2 . . . . . . . . . . . . . . . . . . . . 2 . Garrison Access Hacks 2 | . . . . . . . . . 1 . . . . . . . . . . . . . . . . 1 . Unlock Access 2 | . . . . . . . . . 1 . . . . . . . . . . . . . . . . 1 . Unauthorized Hacks 15 | . 4 . . . . 2 2 . . . . . . . 2 1 . . 2 . 2 . . . . . . Terminals 12 | . 3 . . . . 2 2 . . . . . . . 2 1 . . 1 . 1 . . . . . . Assimilate 1 | . 1 . . . . . . . . . . . . . . . . . . . . . . . . . . Botnet 11 | . 2 . . . . 2 2 . . . . . . . 2 1 . . 1 . 1 . . . . . . Fabricators . | . . . . . . . . . . . . . . . . . . . . . . . . . . . . Repair Stations 1 | . . . . . . . . . . . . . . . . . . . . . 1 . . . . . . Patch 1 | . . . . . . . . . . . . . . . . . . . . . 1 . . . . . . Recycling Units 2 | . 1 . . . . . . . . . . . . . . . . . 1 . . . . . . . . Mask 1 | . . . . . . . . . . . . . . . . . . . 1 . . . . . . . . Tunnel 1 | . 1 . . . . . . . . . . . . . . . . . . . . . . . . . . Scanalyzers . | . . . . . . . . . . . . . . . . . . . . . . . . . . . . Garrison Access . | . . . . . . . . . . . . . . . . . . . . . . . . . . . . Data Cores Recovered 5 | . . . . . . 2 . . . . . . . . 1 . . . . . 1 . . . . 1 . Used 1 | . . . . . . . . . . . . . . . . . . . . . 1 . . . . . . Hacking Detections 44 | . 7 . . . 3 7 7 . 1 1 . . 1 . 3 2 . . 4 . 4 . . . . 3 1 Full Trace Events 3 | . 2 . . . . . . . . . . . . . . 1 . . . . . . . . . . . Feedback Events . | . . . . . . . . . . . . . . . . . . . . . . . . . . . . Feedback Blocked . | . . . . . . . . . . . . . . . . . . . . . . . . . . . . Robot Schematics Acquired . | . . . . . . . . . . . . . . . . . . . . . . . . . . . . Robots Built . | . . . . . . . . . . . . . . . . . . . . . . . . . . . . Authchips . | . . . . . . . . . . . . . . . . . . . . . . . . . . . . Time . | . . . . . . . . . . . . . . . . . . . . . . . . . . . . Total Robot Build Rating . | . . . . . . . . . . . . . . . . . . . . . . . . . . . . Part Schematics Acquired 4 | . . . . . . . . . . . . . . . . . . . . . . . . 4 . . . Parts Built 2 | . . . . . . . . . . . . . . . . . . . 2 . . . . . . . . Authchips . | . . . . . . . . . . . . . . . . . . . . . . . . . . . . Time 64 | . . . . . . . . . . . . . . . . . . . 64 . . . . . . . . Total Part Build Rating 16 | . . . . . . . . . . . . . . . . . . . 16 . . . . . . . . Part Studies Acquired 4 | . . . . . 2 . . . . . . . . . . . . . . . . . . . . 2 . Parts Repaired 5 | . 2 . . . . 1 1 . 1 . . . . . . . . . . . . . . . . . . Time 223 | . 52 . . . . 51 60 . 60 . . . . . . . . . . . . . . . . . . Parts Recycled . | . . . . . . . . . . . . . . . . . . . . . . . . . . . . Recycled Matter . | . . . . . . . . . . . . . . . . . . . . . . . . . . . . Retrieved Matter . | . . . . . . . . . . . . . . . . . . . . . . . . . . . . Retrieved Components 10 | . . . . . . . . . . . . . . . . . . . 10 . . . . . . . . Parts Scanalyzed . | . . . . . . . . . . . . . . . . . . . . . . . . . . . . Part Schematics Acquired . | . . . . . . . . . . . . . . . . . . . . . . . . . . . . Parts Damaged . | . . . . . . . . . . . . . . . . . . . . . . . . . . . . Bothacking | -11 -10 -10 -10 -9 -8 -8 -7 -7 -7 -7 -7 -7 -6 -6 -6 -6 -6 -6 -5 -5 -5 -5 -5 -5 -4 -4 -4 ------------ Run | Yrd Mat Min Exi Min Mat Sto Fac Was Fac Gar Fac DSF Fac Was Fac Ext Cet Arc Fac Was Fac Upp Upp Zhi Pro Fac Gar Used RIF Installer . | . . . . . . . . . . . . . . . . . . . . . . . . . . . . Robots Hacked 2 | . . . . . . . 1 . . . . . . . . . . . 1 . . . . . . . . Non-combat 2 | . . . . . . . 1 . . . . . . . . . . . 1 . . . . . . . . Combat . | . . . . . . . . . . . . . . . . . . . . . . . . . . . . Robot Hacks Applied 2 | . . . . . . . 1 . . . . . . . . . . . 1 . . . . . . . . find_chute 2 | . . . . . . . 1 . . . . . . . . . . . 1 . . . . . . . . Relay Couplers Released 17 | . . . . . . . . . . 17 . . . . . . . . . . . . . . . . . Machine Destruction 17 | . . . . . . . . . . 17 . . . . . . . . . . . . . . . . . Fabnet Peak Effective % . | . . . . . . . . . . . . . . . . . . . . . . . . . . . . Robots Rewired 18 | . . . . . . . . . . . . . . . . 16 . . . . . . . . 2 . . Allies Hacked . | . . . . . . . . . . . . . . . . . . . . . . . . . . . . Hacks Repelled . | . . . . . . . . . . . . . . . . . . . . . . . . . . . . Allies | -11 -10 -10 -10 -9 -8 -8 -7 -7 -7 -7 -7 -7 -6 -6 -6 -6 -6 -6 -5 -5 -5 -5 -5 -5 -4 -4 -4 -------- Run | Yrd Mat Min Exi Min Mat Sto Fac Was Fac Gar Fac DSF Fac Was Fac Ext Cet Arc Fac Was Fac Upp Upp Zhi Pro Fac Gar Total Allies 51 | . 1 . . . . . . 20 . . . 1 . 1 4 22 . . . . . . . . 2 . . Largest Group 19 | . 1 1 1 1 1 . . 18 17 17 5 5 3 3 2 19 14 3 2 . . . . . 2 . . Highest-Rated Group 560 | . 10 10 10 10 10 . . 430 395 395 133 192 141 141 82 560 411 79 40 . . . . . 95 . . Highest-Rated Ally 90 | . 10 10 10 10 10 . . 35 31 31 31 90 90 90 41 39 39 39 20 . . . . . 48 . . Initial Warlord ECA Mod 16 | . . . . . . . . . . . 7 7 16 16 16 16 16 16 15 15 15 15 15 15 14 14 14 Total Orders . | . . . . . . . . . . . . . . . . . . . . . . . . . . . . Ally Attacks 348 | . . . . . . . . 28 . 104 . 20 20 11 26 80 40 6 8 . . . . . 5 . . Total Damage 6710 | . . . . . . . . 425 . 1655 . 486 266 485 848 1328 740 133 172 . . . . . 172 . . Kills 52 | . . . . . . . . . . 12 . 6 3 . 3 16 6 3 3 . . . . . . . . Allies Corrupted . | . . . . . . . . . . . . . . . . . . . . . . . . . . . . Allies Melted . | . . . . . . . . . . . . . . . . . . . . . . . . . . . . Field Lobotomies 5 | . . . . . . . . . . . . 1 . . 4 . . . . . . . . . . . . Intel | -11 -10 -10 -10 -9 -8 -8 -7 -7 -7 -7 -7 -7 -6 -6 -6 -6 -6 -6 -5 -5 -5 -5 -5 -5 -4 -4 -4 ------- Run | Yrd Mat Min Exi Min Mat Sto Fac Was Fac Gar Fac DSF Fac Was Fac Ext Cet Arc Fac Was Fac Upp Upp Zhi Pro Fac Gar Active Infowar (turns) 1 | . . . . . . . . . . . . . . . . . . . 1 . . . . . . . . Optics 1 | . . . . . . . . . . . . . . . . . . . 1 . . . . . . . . Robot Analysis Total 6 | . 2 . . . . . . . . . . . . . . . . . . . . . . 4 . . . Derelict Logs Recovered 5 | . . . . . . . . . . . . . . . . . . . . . . 1 2 . 2 . . Drone Launches . | . . . . . . . . . . . . . . . . . . . . . . . . . . . . Drone Recoveries . | . . . . . . . . . . . . . . . . . . . . . . . . . . . . Exploration | -11 -10 -10 -10 -9 -8 -8 -7 -7 -7 -7 -7 -7 -6 -6 -6 -6 -6 -6 -5 -5 -5 -5 -5 -5 -4 -4 -4 ------------- Run | Yrd Mat Min Exi Min Mat Sto Fac Was Fac Gar Fac DSF Fac Was Fac Ext Cet Arc Fac Was Fac Upp Upp Zhi Pro Fac Gar Turns Passed 22405 | 54 1241 95 336 607 2181 2115 2065 496 130 1440 4 373 976 140 1132 1925 285 407 1299 211 1699 593 514 232 959 817 79 Spaces Moved 11115 | 28 626 60 209 358 835 850 1209 333 47 924 3 204 560 75 588 997 140 68 494 88 670 326 322 138 432 372 159 Core 220 | 3 . . . . . . . . . . . . . . . . . . . . . . . . . 58 159 Treads 7464 | 25 626 60 209 358 835 850 341 . . 110 3 204 560 75 588 997 140 68 494 88 471 . 114 138 110 . . Legs 636 | . . . . . . . . . . . . . . . . . . . . . . . . . 322 314 . Wheels 2795 | . . . . . . . 868 333 47 814 . . . . . . . . . . 199 326 208 . . . . Hover . | . . . . . . . . . . . . . . . . . . . . . . . . . . . . Flight . | . . . . . . . . . . . . . . . . . . . . . . . . . . . . Fastest Speed 50 | 50 160 160 160 160 160 166 105 105 105 105 160 160 160 160 160 160 160 160 160 160 120 150 135 160 160 50 50 Average Speed 153 | 148 160 160 160 160 180 198 122 105 105 122 160 160 160 160 160 160 160 160 160 160 150 150 145 160 184 167 50 Slowest Speed 330 | 160 160 160 160 160 250 250 216 120 105 240 160 160 160 160 160 160 160 160 160 160 240 150 160 160 330 260 50 Overloaded Moves . | . . . . . . . . . . . . . . . . . . . . . . . . . . . . Propulsion Burnouts . | . . . . . . . . . . . . . . . . . . . . . . . . . . . . Robots Hopped . | . . . . . . . . . . . . . . . . . . . . . . . . . . . . Potential Cave-ins 4 | . . . . . . . . . . . . . . . 2 . . . . . . 2 . . . . . Cave-ins Triggered 1 | . . . . . . . . . . . . . . . . . . . . 1 . . . . . . . Teleports 1 | . . . . . . . . . . . . . . . . . . . . . . . . . . 1 . Exploration Rate (%) 52 | 4 93 14 61 87 59 94 34 96 3 86 . 95 12 69 21 96 56 80 14 63 23 46 53 60 60 15 29 Regions Visited 27 Branch Regions 11 Pre-discovered Areas 4 | . 1 . 1 1 . . . . . . . . . . . . . . . . . 1 . . . . . Known Exits Taken 6 | . 1 . . . . . . . 1 . 1 . . . . . . . . . 1 . . . 1 1 . Unknown Exits Taken 13 | 1 . 1 1 1 1 1 . . . . . . . . 1 1 1 1 . . . 1 1 1 . . . Scrap Searched 8 | . . . . 2 . . . . . . . . . . . . . . . . . 1 3 . 2 . . Spaces Dug 56 | . . . . . . . 14 . . . . . . 1 6 . . . 5 4 13 4 . . . 9 . Terrain Destroyed 633 | . . . . 1 36 109 30 . . 97 . . 1 1 11 14 . 2 60 12 98 40 9 . 71 41 . Melee 14 | . . . . . . . 14 . . . . . . . . . . . . . . . . . . . . Projectile 227 | . . . . 1 . . . . . . . . 1 1 11 . . . 60 12 75 15 8 . 16 27 . AOE 388 | . . . . . 36 109 16 . . 97 . . . . . 14 . . . . 23 25 . . 54 14 . Terrain Rammed . | . . . . . . . . . . . . . . . . . . . . . . . . . . . . Walls Destroyed . | . . . . . . . . . . . . . . . . . . . . . . . . . . . . Machines Disabled . | . . . . . . . . . . . . . . . . . . . . . . . . . . . . Actions | -11 -10 -10 -10 -9 -8 -8 -7 -7 -7 -7 -7 -7 -6 -6 -6 -6 -6 -6 -5 -5 -5 -5 -5 -5 -4 -4 -4 --------- Run | Yrd Mat Min Exi Min Mat Sto Fac Was Fac Gar Fac DSF Fac Was Fac Ext Cet Arc Fac Was Fac Upp Upp Zhi Pro Fac Gar Total 14613 | 36 775 59 211 372 1241 1123 1638 434 127 1196 2 241 609 89 695 1216 173 351 804 122 1072 386 344 150 508 481 158 Wait 1507 | . 78 . . . 172 103 237 31 79 119 . 19 9 1 10 18 . 263 149 13 163 23 4 . 10 6 . Move 11093 | 28 625 59 208 357 834 849 1209 332 47 923 2 203 560 74 587 996 139 67 494 87 669 325 321 137 431 372 158 Hop . | . . . . . . . . . . . . . . . . . . . . . . . . . . . . Pick Up 144 | 1 15 . 1 1 26 16 14 8 . 5 . 1 6 . 3 3 2 4 8 . 20 . 2 2 2 4 . Fast Attach 71 | 5 3 . . . . 6 3 2 1 13 . 1 . 3 2 4 2 1 1 2 10 . 1 2 5 4 . Attach 60 | . . . . . 8 . 4 . . 8 . . 2 . 3 3 1 1 2 . 11 3 1 . 7 6 . Detach 34 | . . . . . 1 1 2 1 . 7 . . . . 1 . 3 2 1 . 2 . . 4 1 8 . Swap 303 | 1 6 . 1 . 22 30 31 4 . 6 . 7 5 3 25 11 7 1 53 3 52 8 3 3 8 13 . Drop 170 | . 2 . 1 1 31 20 19 15 . 21 . 3 3 3 5 4 5 3 11 . 10 1 2 2 2 6 . Fire 979 | . 44 . . 10 134 83 100 41 . 42 . 7 24 5 58 59 14 9 82 17 122 26 10 . 39 53 . Melee 15 | . . . . . . . 15 . . . . . . . . . . . . . . . . . . . . Ram . | . . . . . . . . . . . . . . . . . . . . . . . . . . . . Kick 4 | . . . . . . . . . . . . . . . . . . . . . . . . . . 4 . Crush 53 | 1 2 . . 3 13 13 1 . . . . . . . 1 3 . . 3 . 13 . . . . . . Escape Stasis 62 | . . . . . . 2 3 . . 52 . . . . . . . . . . . . . . . 5 . Rewire 118 | . . . . . . . . . . . . . . . . 115 . . . . . . . . 3 . . Trap . | . . . . . . . . . . . . . . . . . . . . . . . . . . . . Miscellaneous . | . . . . . . . . . . . . . . . . . . . . . . . . . . . . Route ------- -11/Scrapyard -10/Materials (discovered 4 exits: [*Mat x3] / *Min) -10/Mines (discovered 2 exits: *Exi / [*Sub]) -10/Exiles -9/Mines -8/Materials -8/Storage -7/Factory (discovered 3 exits: *Fac x2 / [*Low]) -7/Waste -7/Factory -7/Garrison (discovered 3 exits: *Fac x3) -7/Factory -7/DSF -6/Factory -6/Waste -6/Factory (discovered 3 exits: *Fac x2 / *Ext) -6/Extension (discovered 3 exits: *Fac x2 / [*Cet]) -6/Cetus (discovered 2 exits: *Fac / [*Arc]) -6/Archives (discovered 3 exits: *Fac / [*Hub x2]) -5/Factory -5/Waste -5/Factory (discovered 3 exits: *Fac / *Upp x2) -5/Upper Caves -5/Upper Caves -5/Zhirov -4/Proximity Caves -4/Factory (discovered 2 exits: *Res / Gar) -4/Garrison (discovered 1 exit: [*Fac]) History --------- Turn | Location | Event 6 | -11/Scrapyard | Discovered new exit (range 15) 55 | -11/Scrapyard | Entered Materials 308 | -10/Materials | Build established: Mutant 516 | -10/Materials | Discovered new exit (range 8) 882 | -10/Materials | Discovered new exit (range 13) 882 | -10/Materials | Central database locked down 1024 | -10/Materials | Discovered new exit (range 10) 1069 | -10/Materials | Identified exit to Mines 1236 | -10/Materials | Repaired Lgt. Treads 1264 | -10/Materials | Repaired Lgt. Treads 1296 | -10/Materials | Entered Mines 1296 | -10/Mines | Accompanied by 1 ally 1373 | -10/Mines | Discovered new exit (range 6) 1383 | -10/Mines | Deemed a non-threat by the Exiles lab entrance 1383 | -10/Mines | Discovered new exit (range 5) 1391 | -10/Mines | Entered Exiles 1391 | -10/Exiles | Accompanied by 1 ally 1430 | -10/Exiles | Met 8R-AWN 1457 | -10/Exiles | Met EX-HEX 1502 | -10/Exiles | Met EX-BIN 1524 | -10/Exiles | Aligned with FarCom system 1526 | -10/Exiles | Given EX-Vault access code 1563 | -10/Exiles | Opened EX-Vault 1574 | -10/Exiles | Found Field Lobotomy Kit 1607 | -10/Exiles | Warned to stay clear of 0b10 Research branches 1631 | -10/Exiles | Exiles lab attacked by MAIN.C 1663 | -10/Exiles | Learned location of Zion (-7) 1713 | -10/Exiles | Discovered new exit (range 11) 1727 | -10/Exiles | Left Exiles lab with Field Lobotomy Kit 1727 | -10/Exiles | Entered Mines 1727 | -9/Mines | Accompanied by 1 ally 2318 | -9/Mines | Discovered new exit (range 11) 2319 | -9/Mines | Learned location of Storage (-8) 2334 | -9/Mines | Entered Materials 2334 | -8/Materials | Accompanied by 1 ally 2334 | -8/Materials | Evolved 4 slots: Propulsion x1, Utility x2, Weapon x1 2637 | -8/Materials | Build established: Skirmisher 2964 | -8/Materials | Build established: Scavenger-Skirmisher 3570 | -8/Materials | Discovered new exit (range 5) 3994 | -8/Materials | Build established: Skirmisher 4334 | -8/Materials | First assault squad dispatched 4515 | -8/Materials | Entered Storage 5142 | -8/Storage | Repaired Imp. Assault Rifle 5582 | -8/Storage | Found Prototype Processor 5582 | -8/Storage | Identified Exp. Targeting Computer 6115 | -8/Storage | First assault squad dispatched 6192 | -8/Storage | Discovered new exit (range 15) 6630 | -8/Storage | Entered Factory 6630 | -7/Factory | Evolved 2 slots: Propulsion x2 7033 | -7/Factory | Discovered new exit (range 13) 7418 | -7/Factory | Discovered new exit (range 10) 7538 | -7/Factory | Garrison activated, responded to threat 7810 | -7/Factory | Repaired Enh. Autogun 7886 | -7/Factory | Discovered new exit (range 6) 8601 | -7/Factory | Build established: Gunner 8630 | -7/Factory | First assault squad dispatched 8695 | -7/Factory | Sucked down chute 8695 | -7/Factory | Entered Waste 8696 | -7/Waste | Met a frightened Derelict 8702 | -7/Waste | Spotted C-40 Crusher 8726 | -7/Waste | Destroyed C-40 Crusher 8760 | -7/Waste | Spotted C-40 Crusher 8785 | -7/Waste | Destroyed C-40 Crusher 8790 | -7/Waste | Spotted C-40 Crusher 8799 | -7/Waste | Destroyed C-40 Crusher 8801 | -7/Waste | Destroyed C-40 Crusher 8806 | -7/Waste | Spotted C-40 Crusher 8810 | -7/Waste | Spotted C-40 Crusher 8830 | -7/Waste | Destroyed C-40 Crusher 8865 | -7/Waste | Destroyed C-40 Crusher 8941 | -7/Waste | Warlord forces began an assault 9113 | -7/Waste | Discovered new exit (range 16) 9191 | -7/Waste | Entered Factory 9191 | -7/Factory | Accompanied by 17 allies 9260 | -7/Factory | Repaired Enh. Autogun 9302 | -7/Factory | Identified exit to Garrison 9321 | -7/Factory | Entered Garrison 9321 | -7/Garrison | Accompanied by 17 allies 9423 | -7/Garrison | Triggered checkpoint 9455 | -7/Garrison | Garrison Relay disabled 9460 | -7/Garrison | Lost 3 allies 9563 | -7/Garrison | Triggered checkpoint 9564 | -7/Garrison | Triggered checkpoint 9576 | -7/Garrison | Triggered checkpoint 9593 | -7/Garrison | Triggered checkpoint 9625 | -7/Garrison | Lost 7 allies 9663 | -7/Garrison | Triggered checkpoint 9701 | -7/Garrison | Garrison Relay disabled 9761 | -7/Garrison | Discovered new exit (range 11) 9811 | -7/Garrison | Triggered checkpoint 9833 | -7/Garrison | Triggered checkpoint 9867 | -7/Garrison | Build established: Scavenger-Gunner 9878 | -7/Garrison | Phase Generator disabled 9970 | -7/Garrison | Discovered new exit (range 10) 10005 | -7/Garrison | Triggered checkpoint 10131 | -7/Garrison | Garrison Relay disabled 10253 | -7/Garrison | Triggered checkpoint 10303 | -7/Garrison | Triggered checkpoint 10320 | -7/Garrison | Garrison Relay disabled 10345 | -7/Garrison | Build established: Gunner 10364 | -7/Garrison | Discovered new exit (range 13) 10761 | -7/Garrison | Entered Factory 10761 | -7/Factory | Accompanied by 5 allies 10765 | -7/Factory | Identified exit to DSF 10765 | -7/Factory | Entered DSF 10765 | -7/DSF | Accompanied by 5 allies 10790 | -7/DSF | Additional patrols routed to DSF 10796 | -7/DSF | Assimilated H-61 Shepherd with FLK Orb 10852 | -7/DSF | Discovered new exit (range 16) 11128 | -7/DSF | Sterilization system engaged 11138 | -7/DSF | Entered Factory 11138 | -6/Factory | Accompanied by 3 allies 11138 | -6/Factory | Evolved 2 slots: Power x1, Propulsion x1 11445 | -6/Factory | Build established: Scavenger-Gunner 11904 | -6/Factory | Discovered new exit (range 5) 12114 | -6/Factory | Manually triggered Chute Trap 12114 | -6/Factory | Sucked down chute 12114 | -6/Factory | Entered Waste 12115 | -6/Waste | Met a frightened Derelict 12124 | -6/Waste | 1 allies followed down the chute 12129 | -6/Waste | EMP discharged 12129 | -6/Waste | Spotted C-40 Crusher 12131 | -6/Waste | Destroyed C-40 Crusher 12149 | -6/Waste | 1 allies followed down the chute 12159 | -6/Waste | Spotted C-40 Crusher 12164 | -6/Waste | Destroyed C-40 Crusher 12229 | -6/Waste | EMP discharged 12229 | -6/Waste | System corruption reached 10% 12237 | -6/Waste | Discovered new exit (range 12) 12254 | -6/Waste | Entered Factory 12254 | -6/Factory | Accompanied by 1 ally 12694 | -6/Factory | Garrison activated, responded to threat 12704 | -6/Factory | Discovered new exit (range 15) 12720 | -6/Factory | Discovered new exit (range 15) 13040 | -6/Factory | Cargo convoy interrupted 13050 | -6/Factory | Assimilated H-66 Slayer with FLK Orb 13054 | -6/Factory | Assimilated P-60 Hacker with FLK Orb 13057 | -6/Factory | Assimilated H-66 Slayer with FLK Orb 13060 | -6/Factory | Assimilated H-66 Slayer with FLK Orb 13089 | -6/Factory | Lost 3 allies 13308 | -6/Factory | Specialist reinforcements revealed to be Infiltrators 13361 | -6/Factory | Discovered new exit (range 16) 13386 | -6/Factory | Entered Extension 13877 | -6/Extension | Energy Cycler disabled 13878 | -6/Extension | Rescued a captive Derelict 13879 | -6/Extension | Rescued a captive Derelict 13880 | -6/Extension | Rescued a captive Derelict 13880 | -6/Extension | Rescued a captive Derelict 13880 | -6/Extension | Rescued a captive Derelict 13882 | -6/Extension | Rescued a captive Derelict 13883 | -6/Extension | Rescued a captive Derelict 13883 | -6/Extension | Rescued a captive Derelict 13884 | -6/Extension | Rescued a captive Derelict 14252 | -6/Extension | Spotted B-75 Beast 14270 | -6/Extension | Destroyed B-75 Beast 14276 | -6/Extension | Discovered new exit (range 13) 14806 | -6/Extension | Build established: Commander-Gunner 14978 | -6/Extension | Discovered new exit (range 10) 14980 | -6/Extension | Discovered new exit (range 6) 15136 | -6/Extension | First assault squad dispatched 15220 | -6/Extension | Lost 5 allies 15311 | -6/Extension | Entered Cetus 15311 | -6/Cetus | Accompanied by 14 allies 15331 | -6/Cetus | Spotted Cetus Guard 15331 | -6/Cetus | Spotted Cetus Guard 15334 | -6/Cetus | Spotted Cetus Guard 15336 | -6/Cetus | Spotted Cetus Guard 15346 | -6/Cetus | Allies destroyed Cetus Guard 15346 | -6/Cetus | Destroyed Cetus Guard 15349 | -6/Cetus | Destroyed Cetus Guard 15354 | -6/Cetus | Allies destroyed Cetus Guard 15378 | -6/Cetus | Lost 6 allies 15444 | -6/Cetus | Discovered new exit (range 15) 15470 | -6/Cetus | Spotted Cetus Guard 15470 | -6/Cetus | Spotted Cetus Guard 15475 | -6/Cetus | Spotted Cetus Guard 15475 | -6/Cetus | Spotted Cetus Guard 15478 | -6/Cetus | Destroyed Cetus Guard 15481 | -6/Cetus | Destroyed Cetus Guard 15484 | -6/Cetus | Allies destroyed Cetus Guard 15488 | -6/Cetus | Destroyed Cetus Guard 15503 | -6/Cetus | Discovered new exit (range 16) 15511 | -6/Cetus | Met Revision 17 15515 | -6/Cetus | Lost 5 allies 15596 | -6/Cetus | Entered Archives 15596 | -6/Archives | Accompanied by 3 allies 15673 | -6/Archives | Discovered new exit (range 16) 15687 | -6/Archives | Discovered new exit (range 15) 15704 | -6/Archives | Discovered new exit (range 16) 15944 | -6/Archives | Build established: Scavenger-Gunner 16003 | -6/Archives | Entered Factory 16003 | -5/Factory | Accompanied by 2 allies 16003 | -5/Factory | Evolved 2 slots: Power x1, Weapon x1 16099 | -5/Factory | Fabricated Adv. Force Field (x2) 16548 | -5/Factory | Garrison activated, responded to threat 17302 | -5/Factory | Manually triggered Chute Trap 17302 | -5/Factory | Sucked down chute 17302 | -5/Factory | Entered Waste 17325 | -5/Waste | Spotted C-40 Crusher 17325 | -5/Waste | Spotted C-40 Crusher 17359 | -5/Waste | Destroyed C-40 Crusher 17366 | -5/Waste | Spotted C-40 Crusher 17374 | -5/Waste | Spotted C-40 Crusher 17374 | -5/Waste | Spotted C-40 Crusher 17404 | -5/Waste | Destroyed C-40 Crusher 17411 | -5/Waste | Destroyed C-40 Crusher 17418 | -5/Waste | Crushed by falling debris 17418 | -5/Waste | System corruption reached 10% 17418 | -5/Waste | Spotted C-40 Crusher 17419 | -5/Waste | Crushed by Compactor (1 part destroyed) 17450 | -5/Waste | Lost 4 parts (1p1n1u1w) 17495 | -5/Waste | Discovered new exit (range 10) 17513 | -5/Waste | Entered Factory 17797 | -5/Factory | Spotted B-75 Beast 17843 | -5/Factory | Destroyed B-75 Beast 18263 | -5/Factory | Garrison activated, responded to threat 18419 | -5/Factory | Identified exit to Upper Caves 18713 | -5/Factory | First assault squad dispatched 18829 | -5/Factory | Lost 4 parts (1p2n1w) 18854 | -5/Factory | Discovered new exit (range 15) 19139 | -5/Factory | Found Prototype Launcher 19139 | -5/Factory | Identified Mni. Smartbomb Launcher 19144 | -5/Factory | Found Mni. Smartbomb Launcher 19212 | -5/Factory | Entered Upper Caves 19337 | -5/Upper Caves | Met a Warlord Commander 19338 | -5/Upper Caves | Learned location of Warlord (-4) 19339 | -5/Upper Caves | Warlord Commander delivered Encrypted Comm Array 19373 | -5/Upper Caves | Learned Factory terminal intel 19439 | -5/Upper Caves | Spotted B-75 Beast 19632 | -5/Upper Caves | Destroyed B-75 Beast 19662 | -5/Upper Caves | Lost 3 parts (1n2w) 19738 | -5/Upper Caves | Discovered new exit (range 9) 19805 | -5/Upper Caves | Entered another Upper Caves area 19892 | -5/Upper Caves | Lost 3 parts (2p1u) 20016 | -5/Upper Caves | Learned location of 1 exit from Proximity Caves 20111 | -5/Upper Caves | Attracted the attention of an 0b10 checkpoint 20226 | -5/Upper Caves | Learned Factory stockpile data 20314 | -5/Upper Caves | Discovered new exit (range 3) 20319 | -5/Upper Caves | Entered Zhirov 20319 | -5/Zhirov | Discovered new exit (range 3) 20354 | -5/Zhirov | Met Zhirov 20397 | -5/Zhirov | Zhirov requested help retrieving the SGEMP Prototype 20421 | -5/Zhirov | Found Alien Artifact 20421 | -5/Zhirov | Identified Integrated Reactor 20421 | -5/Zhirov | Installed Integrated Reactor, increased core energy generation (+10) 20442 | -5/Zhirov | Found Alien Artifact 20551 | -5/Zhirov | Entered Proximity Caves 20552 | -4/Proximity Caves | Identified exit to Factory 20589 | -4/Proximity Caves | Found Alien Artifact 20672 | -4/Proximity Caves | Attracted the attention of an 0b10 outpost 20673 | -4/Proximity Caves | Spotter reported a threat 20698 | -4/Proximity Caves | Core integrity fell below 50% 20724 | -4/Proximity Caves | Destroyed 7 combat bots 20857 | -4/Proximity Caves | Lost 4 parts (4n) 20872 | -4/Proximity Caves | Spotter reported a threat 21115 | -4/Proximity Caves | Learned 4 Research zone layouts 21180 | -4/Proximity Caves | Learned location of 1 exit from Upper Caves 21308 | -4/Proximity Caves | Spotter reported a threat 21510 | -4/Proximity Caves | Entered Factory 21510 | -4/Factory | Evolved 2 slots: Propulsion x2 21512 | -4/Factory | Loaded intel: 26 terminal locations 21760 | -4/Factory | Search patrols dispatched 21944 | -4/Factory | Discovered new exit (range 5) 21955 | -4/Factory | Identified exit to Research 22239 | -4/Factory | Lost 3 parts (1n2w) 22249 | -4/Factory | Identified Transdimensional Reconstructor 22249 | -4/Factory | Warped through subspace 22294 | -4/Factory | System corruption reached 10% 22301 | -4/Factory | Core integrity fell below 50% 22327 | -4/Factory | Identified exit to Garrison 22327 | -4/Factory | Entered Garrison 22348 | -4/Garrison | Spotted B-86 Titan 22371 | -4/Garrison | Discovered new exit (range 8) 22374 | -4/Garrison | Attempted to access garrison exit controls, blocked by remote lockdown 22392 | -4/Garrison | Triggered checkpoint 22394 | -4/Garrison | Triggered checkpoint 22398 | -4/Garrison | Core integrity fell below 20% 22399 | -4/Garrison | Triggered checkpoint 22406 | -4/Garrison | Destroyed by S-27 Virus with Autogun Last Messages --------------- 22327_ Receiving FarCom transmissions... 22337_ Connecting with Garrison Terminal... 22349_ System corrupted: Matter fused (-7). 22358_ Slug penetrates Wall. 22365_ System corrupted: Component data lost. 22371_ EXIT=FOUND 22374_ Attempting to access garrison exit controls... 22374_ Remote lockdown engaged. 22383_ CA